fUSD/lending_fUSD_20260311
["ID","MTS","AMOUNT","RATE_DAILY","PERIOD"]
[408205728,1773234641129,-1601.12,0.00019756,2]
[408205729,1773234641138,-284.0,0.00019757,2]
[408205730,1773234641147,-562.05,0.00019779,2]
[408205731,1773234641157,-150.0,0.0001978,2]
[408205732,1773234641166,-150.0,0.0001978,2]
[408205733,1773234641175,-150.0,0.0001978,2]
[408205734,1773234641184,-150.0,0.0001978,2]
[408205735,1773234641193,-500.0,0.0001978,2]
[408205736,1773234641203,-500.0,0.0001978,2]
[408205737,1773234641212,-500.0,0.0001978,2]
[408205738,1773234641221,-150.0,0.0001978,2]
[408205739,1773234641231,-500.0,0.0001978,2]
[408205740,1773234641240,-150.0,0.0001978,2]
[408205741,1773234641250,-270.82096564,0.0001978,2]
[408205742,1773234641259,-500.0,0.00019796,2]
[408205743,1773234641269,-500.0,0.00019796,2]
[408205744,1773234641279,-500.0,0.00019799,2]
[408205745,1773234641288,-500.0,0.00019799,2]
[408205746,1773234641297,-960.95327,0.000198,2]
[408205747,1773234641307,-161.91128629,0.0001981,2]
[408205748,1773234641316,-150.0,0.00019835,2]
[408205749,1773234641325,-150.0,0.00019835,2]
[408205750,1773234641334,-150.0,0.00019835,2]
[408205751,1773234641344,-500.0,0.00019835,2]
[408205752,1773234641354,-500.0,0.00019835,2]
[408205753,1773234641363,-322.0,0.00019835,2]
[408205754,1773234641372,-150.0,0.00019835,2]
[408205755,1773234641382,-500.0,0.00019835,2]
[408205756,1773234641391,-1550.35834654,0.00019835,2]
[408205757,1773234641400,-150.0,0.00019835,2]
[408205758,1773234641410,-161.91128629,0.0001984,2]
[408205759,1773234641420,-161.91128629,0.0001987,2]
[408205760,1773234641428,-150.0,0.00019889,2]
[408205761,1773234641437,-150.0,0.00019889,2]
[408205762,1773234641447,-150.0,0.00019889,2]
[408205763,1773234641456,-176.63243002,0.00019889,2]
[408205764,1773234641465,-500.0,0.00019889,2]
[408205765,1773234641476,-500.0,0.00019889,2]
[408205766,1773234641488,-250.0,0.0001989,2]
[408205767,1773234641498,-2500.0,0.00019899,2]
[408205768,1773234641507,-676.749,0.00019899,2]
[408205769,1773234641516,-465.69864187,0.000199,2]
[408205770,1773234641526,-3268.84428438,0.000199,2]
[408205771,1773234641535,-960.95328,0.000199,2]
[408205772,1773234641545,-1112.93458247,0.000199,2]
[408205773,1773234641557,-3375.10173308,0.000199,2]
[408205774,1773234641566,-200.76634596,0.000199,2]
[408205775,1773234641576,-161.91128629,0.000199,2]
[408205776,1773234641585,-3973.2435115,0.000199,2]
[408205777,1773234641594,-326.11947,0.0001991,2]
[408205778,1773234641603,-500.0,0.0001993,2]
[408205779,1773234641612,-326.11947,0.0001993,2]
[408205780,1773234641621,-250.0,0.00019931,2]
[408205781,1773234641630,-255.32887271,0.00019944,2]
[408205782,1773234641640,-287.84963494,0.00019944,2]
[408205783,1773234641649,-224.0,0.00019944,2]
[408205784,1773234641658,-500.0,0.00019944,2]
[408205785,1773234641667,-240.22060755,0.00019944,2]
[408205786,1773234641676,-250.0,0.00019945,2]
[408205787,1773234641685,-2393.0,0.00019973,2]
[408205788,1773234641694,-3664.0,0.00019973,2]
[408205789,1773234641704,-500.0,0.00019973,2]
[408205790,1773234641714,-502.81664943,0.00019973,2]
[408205791,1773234641724,-505.41983925,0.00019973,2]
[408205792,1773234641734,-250.0,0.00019973,2]
[408205793,1773234641744,-163.04146088,0.0001999,2]
[408205794,1773234641753,-163.04146088,0.0001999,2]
[408205795,1773234641967,-163.04146088,0.0001999,2]
[408205796,1773234641978,-232.08,0.0001999,2]
[408205797,1773234641987,-232.08,0.0001999,2]
[408205798,1773234641996,-232.08,0.0001999,2]
[408205799,1773234642005,-232.08,0.0001999,2]
[408205800,1773234642014,-232.08,0.0001999,2]
[408205801,1773234642023,-151.0,0.00019997,2]
[408205802,1773234642032,-2793.9369214,0.00019997,2]
[408205803,1773234642041,-3856.01,0.00019998,2]
[408205804,1773234642050,-178.759,0.00019998,2]
[408205805,1773234642060,-500.0,0.00019999,2]
[408205806,1773234642069,-300.0,0.00019999,2]
[408205807,1773234642078,-666.0,0.00019999,2]
[408205808,1773234642087,-300.0,0.00019999,2]
[408205809,1773234642097,-806.14,0.00019999,2]
[408205810,1773234642107,-806.14,0.00019999,2]
[408205811,1773234642115,-806.14,0.00019999,2]
[408205812,1773234642124,-806.14,0.00019999,2]
[408205813,1773234642133,-806.14,0.00019999,2]
[408205814,1773234642142,-806.14,0.00019999,2]
[408205815,1773234642151,-806.14,0.00019999,2]
[408205816,1773234642160,-806.14,0.00019999,2]
[408205817,1773234642169,-806.14,0.00019999,2]
[408205818,1773234642179,-806.14,0.00019999,2]
[408205819,1773234642187,-806.14,0.00019999,2]
[408205820,1773234642196,-806.14,0.00019999,2]
[408205821,1773234642204,-806.14,0.00019999,2]
[408205822,1773234642213,-806.14,0.00019999,2]
[408205823,1773234642222,-505.20001815,0.00019999,2]
[408205824,1773234642232,-565.55,0.00019999,2]
[408205825,1773234642241,-565.55,0.00019999,2]
[408205826,1773234642250,-565.55,0.00019999,2]
[408205827,1773234642259,-565.55,0.00019999,2]
[408205828,1773234642268,-565.55,0.00019999,2]
[408205829,1773234642277,-565.55,0.00019999,2]
[408205830,1773234642286,-565.55,0.00019999,2]
[408205831,1773234642295,-565.55,0.00019999,2]
[408205832,1773234642303,-565.55,0.00019999,2]
[408205833,1773234642312,-565.55,0.00019999,2]
[408205834,1773234642323,-565.55,0.00019999,2]
[408205835,1773234642332,-565.55,0.00019999,2]
[408205836,1773234642341,-565.55,0.00019999,2]
[408205837,1773234642350,-565.55,0.00019999,2]
[408205838,1773234642359,-350.0,0.00019999,2]
[408205839,1773234642368,-150.0,0.00019999,2]
[408205840,1773234642377,-500.0,0.00019999,2]
[408205841,1773234642386,-500.0,0.00019999,2]
[408205842,1773234642395,-500.0,0.00019999,2]
[408205843,1773234642403,-221.07,0.00019999,2]
[408205844,1773234642412,-1212.18103635,0.00019999,5]
[408205845,1773234642421,-500.0,0.00019999,2]
[408205846,1773234642431,-500.0,0.00019999,2]
[408205847,1773234642439,-500.0,0.00019999,2]
[408205848,1773234642448,-500.0,0.00019999,2]
[408205849,1773234642457,-500.0,0.00019999,2]
[408205850,1773234642466,-500.0,0.00019999,2]
[408205851,1773234642478,-500.0,0.00019999,2]
[408205852,1773234642487,-500.0,0.00019999,2]
[408205853,1773234642497,-500.0,0.00019999,2]
[408205854,1773234642505,-500.0,0.00019999,2]
[408205855,1773234642515,-500.0,0.00019999,2]
[408205856,1773234642525,-500.0,0.00019999,2]
[408205857,1773234642534,-500.0,0.00019999,2]
[408205858,1773234642543,-500.0,0.00019999,2]
[408205859,1773234642555,-500.0,0.00019999,2]
[408205860,1773234642564,-500.0,0.00019999,2]
[408205861,1773234642573,-500.0,0.00019999,2]
[408205862,1773234642582,-500.0,0.00019999,2]
[408205863,1773234642591,-500.0,0.00019999,2]
[408205864,1773234642600,-500.0,0.00019999,2]
[408205865,1773234642609,-500.0,0.00019999,2]
[408205866,1773234642618,-500.0,0.00019999,2]
[408205867,1773234642627,-500.0,0.00019999,2]
[408205868,1773234642635,-500.0,0.00019999,2]
[408205869,1773234642644,-500.0,0.00019999,2]
[408205870,1773234642654,-500.0,0.00019999,2]
[408205871,1773234642663,-500.0,0.00019999,2]
[408205872,1773234642671,-500.0,0.00019999,2]
[408205873,1773234642680,-500.0,0.00019999,2]
[408205874,1773234642689,-500.0,0.00019999,2]
[408205875,1773234642698,-500.0,0.00019999,2]
[408205876,1773234642709,-506.32926117,0.00019999,2]
[408205877,1773234642719,-500.0,0.00019999,2]
[408205878,1773234642728,-504.64296701,0.00019999,2]
[408205879,1773234642738,-500.0,0.00019999,2]
[408205880,1773234642754,-500.0,0.00019999,2]
[408205881,1773234642763,-500.0,0.00019999,2]
[408205882,1773234642773,-500.0,0.00019999,2]
[408205883,1773234642782,-500.0,0.00019999,2]
[408205884,1773234642791,-500.0,0.00019999,2]
[408205885,1773234642800,-610.63586065,0.00019999,2]
[408205886,1773234642809,-500.0,0.00019999,2]
[408205887,1773234642818,-500.0,0.00019999,2]
[408205888,1773234642827,-500.0,0.00019999,2]
[408205889,1773234642835,-500.0,0.00019999,2]
[408205890,1773234642844,-500.0,0.00019999,2]
[408205891,1773234642853,-500.0,0.00019999,2]
[408205892,1773234642862,-503.86249418,0.00019999,2]
[408205893,1773234642871,-500.0,0.00019999,2]
[408205894,1773234642881,-500.0,0.00019999,2]
[408205895,1773234642890,-500.0,0.00019999,2]
[408205896,1773234642899,-500.0,0.00019999,2]
[408205897,1773234642908,-500.0,0.00019999,2]
[408205898,1773234642918,-500.0,0.00019999,2]
[408205899,1773234642927,-500.0,0.00019999,2]
[408205900,1773234642936,-500.0,0.00019999,2]
[408205901,1773234642945,-500.0,0.00019999,2]
[408205902,1773234642955,-500.0,0.00019999,2]
[408205903,1773234642964,-500.0,0.00019999,2]
[408205904,1773234642973,-506.82131153,0.00019999,2]
[408205905,1773234642983,-500.0,0.00019999,2]
[408205906,1773234642992,-500.0,0.00019999,2]
[408205907,1773234643001,-500.0,0.00019999,2]
[408205908,1773234643010,-500.0,0.00019999,2]
[408205909,1773234643020,-607.88103677,0.00019999,2]
[408205910,1773234643031,-3000.0,0.00019999,2]
[408205912,1773234643040,-3000.0,0.00019999,7]
[408205914,1773234643050,-500.0,0.00019999,2]
[408205916,1773234643060,-431.50463315,0.00019999,2]
[408205917,1773234643069,-255.48379823,0.00019999,2]
[408205918,1773234643078,-344.71249765,0.00019999,2]
[408205919,1773234643087,-500.0,0.00019999,2]
[408205920,1773234643097,-500.0,0.00019999,2]
[408205921,1773234643106,-500.0,0.00019999,2]
[408205922,1773234643115,-500.0,0.00019999,2]
[408205923,1773234643124,-500.0,0.00019999,2]
[408205924,1773234643133,-500.0,0.00019999,2]
[408205925,1773234643142,-500.0,0.00019999,2]
[408205926,1773234643150,-500.0,0.00019999,2]
[408205927,1773234643159,-500.0,0.00019999,2]
[408205928,1773234643168,-500.0,0.00019999,2]
[408205929,1773234643177,-500.0,0.00019999,2]
[408205930,1773234643186,-500.0,0.00019999,2]
[408205931,1773234643195,-500.0,0.00019999,2]
[408205932,1773234643204,-500.0,0.00019999,2]
[408205933,1773234643212,-500.0,0.00019999,2]
[408205934,1773234643221,-500.0,0.00019999,2]
[408205935,1773234643230,-500.0,0.00019999,2]
[408205936,1773234643239,-500.0,0.00019999,2]
[408205937,1773234643247,-500.0,0.00019999,2]
[408205938,1773234643256,-500.0,0.00019999,2]
[408205939,1773234643266,-500.0,0.00019999,2]
[408205940,1773234643274,-500.0,0.00019999,2]
[408205941,1773234643283,-500.0,0.00019999,2]
[408205942,1773234643292,-500.0,0.00019999,2]
[408205943,1773234643303,-500.0,0.00019999,2]
[408205944,1773234643313,-500.0,0.00019999,2]
[408205945,1773234643322,-500.0,0.00019999,2]
[408205946,1773234643331,-500.0,0.00019999,2]
[408205947,1773234643340,-500.0,0.00019999,2]
[408205948,1773234643349,-177.48363435,0.00019999,2]
[408205949,1773234643358,-500.0,0.00019999,2]
[408205950,1773234643367,-500.0,0.00019999,2]
[408205951,1773234643376,-500.0,0.00019999,2]
[408205952,1773234643389,-500.0,0.00019999,2]
[408205953,1773234643397,-500.0,0.00019999,2]
[408205954,1773234643406,-500.0,0.00019999,2]
[408205955,1773234643416,-500.0,0.00019999,2]
[408205956,1773234643425,-500.0,0.00019999,2]
[408205957,1773234643434,-500.0,0.00019999,2]
[408205958,1773234643443,-500.0,0.00019999,2]
[408205959,1773234643453,-500.0,0.00019999,2]
[408205960,1773234643462,-500.0,0.00019999,2]
[408205961,1773234643471,-500.0,0.00019999,2]
[408205962,1773234643484,-500.0,0.00019999,2]
[408205963,1773234643493,-500.0,0.00019999,2]
[408205964,1773234643502,-500.0,0.00019999,2]
[408205965,1773234643511,-250.0,0.00019999,2]
[408205966,1773234643520,-378.04878542,0.00019999,2]
[408205967,1773234643530,-576.30535614,0.00019999,2]
[408205968,1773234643540,-162.02090804,0.00019999,2]
[408205969,1773234643549,-378504.55772592,0.0002,2]
[408205970,1773234643558,-1793.32906339,0.0002,2]
[408205971,1773234643567,-1096021.94622379,0.0002,2]
[408205972,1773234643727,-590.0917593,0.0002,2]
[408205973,1773234643739,-540.43249539,0.0002,2]
[408205974,1773234643749,-342.26322073,0.0002,2]
[408205975,1773234643826,-153.19293752,0.000199,2]
[408205976,1773234643835,-3120.46275324,0.0002,2]
[408205977,1773234643921,-13384.86122401,0.0002,2]
[408205978,1773234644055,-681.58,0.0002,2]
[408205989,1773234646117,-1232.55960869,0.0002,2]
[408205990,1773234646129,-1141.75539225,0.0002,2]
[408205991,1773234646139,-63515.6996924,0.0002,2]
[408206004,1773234670058,151.0,0.00047471,120]
[408206005,1773234670859,151.0,0.00047471,120]
[408206006,1773234671165,500.0,0.00047471,120]
[408206007,1773234678125,170.0,0.00047471,120]
[408206008,1773234679285,201.25450726,0.00047471,120]
[408206009,1773234681164,160.9,0.00047471,120]
[408206010,1773234681771,160.9,0.00047471,120]
[408206011,1773234683856,301.00069851,0.00047471,120]
[408206012,1773234729261,201.0,0.00015394,2]
[408206013,1773234738173,500.0,0.00047471,120]
[408206014,1773234740628,781.45,0.00047471,30]
[408206015,1773234953027,163.13,0.00047471,120]
[408206016,1773235044921,255.0,0.00047471,120]
[408206017,1773235055374,3281.2584634,0.00047471,120]
[408206018,1773235135121,6090.0,0.00047471,30]
[408206020,1773235212781,50000.0,0.00047471,71]
[408206021,1773235256892,171.64,0.00014779,2]
[408206022,1773235293916,4012.11,0.00047471,120]
[408206023,1773235294218,4012.11,0.00047471,120]
[408206024,1773235294481,4012.11,0.00047471,120]
[408206025,1773235294750,4012.11,0.00047471,120]
[408206026,1773235295039,4012.11,0.00047471,120]
[408206027,1773235295286,4012.11,0.00047471,120]
[408206028,1773235295536,4012.11,0.00047471,120]
[408206029,1773235295784,4012.11,0.00047471,120]
[408206030,1773235296041,4012.11,0.00047471,120]
[408206031,1773235296302,4012.11,0.00047471,120]
[408206032,1773235296540,4012.11,0.00047471,120]
[408206033,1773235296801,4012.11,0.00047471,120]
[408206034,1773235297053,4012.11,0.00047471,120]
[408206035,1773235297493,4012.11,0.00047471,120]
[408206036,1773235297581,4012.11,0.00047471,120]
[408206037,1773235297829,4012.11,0.00047471,120]
[408206038,1773235298102,4012.11,0.00047471,120]
[408206039,1773235298336,4012.11,0.00047471,120]
[408206040,1773235298571,4012.11,0.00047471,120]
[408206041,1773235298810,4012.11,0.00047471,120]
[408206042,1773235299048,4012.11,0.00047471,120]
[408206043,1773235299554,4012.11,0.00047471,120]
[408206044,1773235299607,4012.11,0.00047471,120]
[408206045,1773235299809,4012.19969267,0.00047471,120]
[408206046,1773235562370,1484.73288243,0.00047472,30]
[408206047,1773235592122,-358.61,0.0001896,2]
[408206048,1773235592146,-313.0,0.0001896,2]
[408206049,1773235592169,-727.78826435,0.00019,2]
[408206050,1773235639413,61621.8033675,0.00047472,120]
[408206051,1773235687053,6888.0,0.00047473,120]
[408206052,1773235687673,7142.856,0.00047473,120]
[408206053,1773235688298,7407.141672,0.00047473,120]
[408206054,1773235688907,7681.20591386,0.00047473,120]
[408206055,1773235689507,7965.41053268,0.00047473,120]
[408206056,1773235690146,8260.13072239,0.00047473,120]
[408206057,1773235693285,8882.6885148,0.00047473,120]
[408206058,1773235693922,9211.34798985,0.00047473,120]
[408206059,1773235694549,9552.16786547,0.00047473,120]
[408206060,1773235695458,9552.16786547,0.00047473,120]
[408206062,1773235723526,2174.02,0.00047473,120]
[408206063,1773235727894,543.49,0.00047473,120]
[408206064,1773235731976,543.49,0.00047473,120]
[408206065,1773235736339,543.49,0.00047473,120]
[408206066,1773235742159,154.22,9.433e-05,2]
[408206067,1773235742386,154.22,9.929e-05,2]
[408206068,1773235742597,154.22,0.00010425,2]
[408206069,1773235742807,154.22,0.00010922,2]
[408206070,1773235743050,154.22,0.00011418,2]
[408206071,1773235743265,154.22,0.00011915,2]
[408206072,1773235743462,154.22,0.00012411,2]
[408206073,1773235743663,154.22,0.00012908,2]
[408206074,1773235743881,154.22,0.00013404,2]
[408206075,1773235744094,154.22,0.00013901,2]
[408206076,1773235744311,154.22,0.00014397,2]
[408206077,1773235744527,154.22,0.00014893,2]
[408206078,1773235744812,154.22,0.0001539,2]
[408206079,1773235748337,6888.0,0.00047473,120]
[408206081,1773235810370,2031.18577014,0.00047473,120]
[408206085,1773235832153,-154.22,0.00015886,2]
[408206086,1773235832163,-154.22,0.00016383,2]
[408206087,1773235832172,-154.22,0.00016879,2]
[408206088,1773235832181,-154.22,0.00017376,2]
[408206090,1773235832191,-154.22,0.00017872,2]
[408206091,1773235832200,-154.22,0.00018368,2]
[408206092,1773235832210,-575.04,0.000187,2]
[408206093,1773235832221,-1046.42972454,0.000187,2]
[408206094,1773235832233,-378.53027546,0.000187,2]
[408206095,1773235832242,-210.11,0.0001873,2]
[408206096,1773235832251,-154.22,0.00018865,2]
[408206097,1773235832261,-300.0,0.00018877,2]
[408206098,1773235832270,-1200.0,0.00018877,2]
[408206099,1773235832280,-5913.12807573,0.00018878,2]
[408206100,1773235832291,-1631.92882775,0.00018878,2]
[408206101,1773235832302,-729.0,0.00018878,2]
[408206102,1773235832314,-9132.36309652,0.00018878,2]
[408206103,1773235832327,-2246.79173565,0.00019,2]
[408206104,1773235832336,-2000.0,0.00019026,2]
[408206105,1773235832346,-166.66,0.00019184,2]
[408206106,1773235832355,-200.0,0.00019315,2]
[408206109,1773235832590,-166.7,0.00019469,2]
[408206110,1773235832604,-250.0,0.00019522,2]
[408206111,1773235832612,-250.0,0.00019569,2]
[408206112,1773235832623,-166.66,0.00019587,2]
[408206113,1773235832633,-150.0,0.00019616,2]
[408206114,1773235832642,-177.99151511,0.00019616,2]
[408206115,1773235832653,-150.0,0.00019616,2]
[408206116,1773235832662,-150.0,0.00019616,2]
[408206117,1773235832671,-150.0,0.00019616,2]
[408206118,1773235832681,-150.0,0.00019616,2]
[408206119,1773235832690,-150.0,0.00019616,2]
[408206120,1773235832699,-150.0,0.00019616,2]
[408206121,1773235832708,-150.0,0.00019616,2]
[408206122,1773235832717,-250.0,0.00019616,2]
[408206123,1773235832727,-500.0,0.00019616,2]
[408206124,1773235832736,-5027.71,0.00019616,2]
[408206125,1773235832745,-3715.98,0.00019616,2]
[408206126,1773235832754,-7655.43,0.00019616,2]
[408206127,1773235832763,-2532.2,0.00019616,2]
[408206128,1773235832772,-2061.31,0.00019616,2]
[408206129,1773235832781,-8159.93,0.00019616,2]
[408206130,1773235832791,-312.21,0.00019616,2]
[408206131,1773235832800,-150.99,0.00019616,2]
[408206132,1773235832809,-999.99,0.00019616,2]
[408206133,1773235832819,-9999.99,0.00019616,2]
[408206134,1773235832828,-150.0,0.0001967,2]
[408206135,1773235832838,-150.0,0.0001967,2]
[408206136,1773235832847,-150.0,0.0001967,2]
[408206137,1773235832857,-150.0,0.0001967,2]
[408206138,1773235832870,-500.0,0.0001967,2]
[408206139,1773235832879,-150.0,0.0001967,2]
[408206140,1773235832888,-150.0,0.0001967,2]
[408206141,1773235832899,-150.0,0.0001967,2]
[408206142,1773235832908,-150.0,0.0001967,2]
[408206143,1773235832918,-250.98,0.0001967,2]
[408206144,1773235832927,-150.0,0.00019671,2]
[408206145,1773235832938,-150.0,0.00019671,2]
[408206146,1773235832947,-150.0,0.00019671,2]
[408206147,1773235832956,-150.0,0.00019671,2]
[408206148,1773235832965,-250.0,0.00019671,2]
[408206149,1773235832974,-172.95802059,0.00019683,2]
[408206150,1773235832983,-1000.0,0.000197,2]
[408206151,1773235832993,-150.79372961,0.00019725,2]
[408206152,1773235833002,-255.32887271,0.00019725,2]
[408206153,1773235833012,-150.0,0.00019725,2]
[408206154,1773235833021,-150.0,0.00019725,2]
[408206155,1773235833030,-500.0,0.00019725,2]
[408206156,1773235833040,-150.0,0.00019725,2]
[408206157,1773235833049,-150.0,0.00019725,2]
[408206158,1773235833059,-240.22060755,0.00019725,2]
[408206159,1773235833068,-250.0,0.00019725,2]
[408206160,1773235833078,-150.0,0.00019726,2]
[408206161,1773235833088,-200.0,0.00019726,2]
[408206162,1773235833097,-200.0,0.00019726,2]
[408206163,1773235833106,-150.0,0.00019726,2]
[408206164,1773235833115,-250.0,0.00019756,2]
[408206165,1773235833127,-210.11,0.0001977,2]
[408206166,1773235833136,-250.0,0.00019779,2]
[408206167,1773235833146,-150.0,0.0001978,2]
[408206168,1773235833156,-150.0,0.0001978,2]
[408206169,1773235833165,-500.0,0.0001978,2]
[408206170,1773235833175,-200.0,0.0001978,2]
[408206171,1773235833184,-200.0,0.0001978,2]
[408206172,1773235833193,-200.0,0.0001978,2]
[408206173,1773235833203,-200.0,0.0001978,2]
[408206174,1773235833212,-480.47664,0.000198,2]
[408206175,1773235833221,-480.47664,0.000198,2]
[408206176,1773235833231,-1649.44174077,0.000198,2]
[408206177,1773235833240,-250.0,0.000198,2]
[408206178,1773235833250,-1649.44174072,0.00019811,2]
[408206179,1773235833260,-1010.22448839,0.00019822,2]
[408206180,1773235833272,-639.21725233,0.00019822,2]
[408206181,1773235833282,-1649.44174072,0.00019833,2]
[408206182,1773235833292,-150.0,0.00019834,2]
[408206183,1773235833302,-274.0,0.00019834,2]
[408206184,1773235833311,-500.0,0.00019834,2]
[408206185,1773235833320,-250.0,0.00019835,2]
[408206186,1773235833330,-200.0,0.00019839,2]
[408206187,1773235833339,-200.0,0.0001984,2]
[408206188,1773235833348,-675.0,0.00019843,2]
[408206189,1773235833358,-1649.44174072,0.00019844,2]
[408206190,1773235833367,-1649.44174072,0.00019856,2]
[408206191,1773235833381,-1649.44174072,0.00019867,2]
[408206192,1773235833391,-250.0,0.0001987,2]
[408206193,1773235833400,-1649.44174072,0.00019878,2]
[408206194,1773235833410,-1649.44174072,0.00019889,2]
[408206195,1773235833420,-187.84963494,0.00019889,2]
[408206196,1773235833430,-500.0,0.00019889,2]
[408206197,1773235833439,-7899.9905,0.00019899,2]
[408206198,1773235833449,-1000.0,0.00019899,2]
[408206199,1773235833459,-162.0,0.000199,3]
[408206200,1773235833470,-399.17026446,0.000199,2]
[408206201,1773235833480,-6049.81824496,0.000199,2]
[408206202,1773235833491,-37156.84133516,0.000199,2]
[408206203,1773235833515,-2555.62431623,0.000199,2]
[408206204,1773235833526,-806.0,0.000199,2]
[408206205,1773235833537,-2632.9638018,0.000199,2]
[408206206,1773235833549,-2183.2827612,0.000199,2]
[408206207,1773235833560,-2015.80487419,0.000199,2]
[408206208,1773235833570,-297.04785907,0.000199,2]
[408206209,1773235833582,-1306.57053572,0.000199,2]
[408206210,1773235833593,-1095.56629781,0.000199,2]
[408206214,1773235838283,-1425.98552858,0.000199,2]
[408206215,1773235838304,-20958.22132836,0.000199,2]
[408206216,1773235838315,-1276.78651,0.000199,2]
[408206217,1773235838404,-758.60390692,0.000199,2]
[408206218,1773235838414,-1347.31057308,0.000199,2]
[408206219,1773235838425,-3138.87402692,0.000199,2]
[408206220,1773235838443,-3655.94844435,0.000199,2]
[408206221,1773235838454,-1649.44174072,0.000199,2]
[408206222,1773235838464,-200.76634596,0.000199,2]
[408206223,1773235838473,-1112.93458247,0.000199,2]
[408206224,1773235838482,-250.0,0.000199,2]
[408206225,1773235838492,-1558.93448611,0.000199,2]
[408206226,1773235838502,-2169.53549888,0.000199,2]
[408206227,1773235838519,-625.12561241,0.000199,2]
[408206228,1773235838531,-269.04131284,0.000199,2]
[408206323,1773235840880,-781.06101906,0.000199,2]
[408206324,1773235840892,-497.12974831,0.000199,2]
[408206325,1773235843900,-720.75940812,0.000199,2]
[408206326,1773235843911,-3973.2435115,0.000199,2]
[408206327,1773235843920,-250.0,0.0001993,2]
[408206329,1773235843929,-500.0,0.00019944,2]
[408206331,1773235843939,-250.98,0.00019944,2]
[408206332,1773235843949,-250.0,0.00019944,2]
[408206334,1773235843959,-3664.0,0.00019973,2]
[408206335,1773235843972,-2393.0,0.00019973,2]
[408206336,1773235843982,-500.0,0.00019973,2]
[408206337,1773235843991,-505.41983925,0.00019973,2]
[408206338,1773235844000,-250.0,0.00019973,2]
[408206339,1773235844010,-16562.93130531,0.00019985,2]
[408206340,1773235844019,-163.04146088,0.0001999,2]
[408206341,1773235844028,-163.04146088,0.0001999,2]
[408206342,1773235844037,-163.04146088,0.0001999,2]
[408206343,1773235844046,-166.66,0.00019991,2]
[408206344,1773235844056,-151.0,0.00019997,2]
[408206345,1773235844065,-500.0,0.00019998,2]
[408206346,1773235844075,-500.0,0.00019998,2]
[408206347,1773235844084,-500.0,0.00019998,2]
[408206348,1773235844093,-500.0,0.00019999,2]
[408206349,1773235844102,-300.0,0.00019999,2]
[408206350,1773235844112,-300.0,0.00019999,2]
[408206351,1773235844121,-300.0,0.00019999,2]
[408206352,1773235844132,-666.0,0.00019999,2]
[408206353,1773235844142,-300.0,0.00019999,2]
[408206354,1773235844151,-500.0,0.00019999,2]
[408206355,1773235844160,-500.0,0.00019999,2]
[408206356,1773235844169,-500.0,0.00019999,2]
[408206357,1773235844179,-589.0897926,0.00019999,2]
[408206358,1773235844188,-500.0,0.00019999,2]
[408206359,1773235844197,-500.0,0.00019999,2]
[408206360,1773235844207,-500.0,0.00019999,2]
[408206361,1773235844216,-500.0,0.00019999,2]